Cogmind - Beta 14 @@@ ROGUE MODE // 2024.10.07 @ 13:47:31 Player: anastasia Result: Destroyed by Y-45 Defender with Beam Rifle Performance ------------- Evolutions (2) 1000 Regions Visited (9) 1800 Robots Destroyed (104) 520 Value Destroyed (2845) 2845 Prototype IDs (28) 560 Alien Tech Used (0) 0 Bonus (477) 477 TOTAL SCORE: 7202 Bonus ------- Entered Garrisons 200 Aligned with FarCom 300 Friendly Fire -23 Cogmind --------- Core Integrity 0/550 Matter 226/300 Energy 265/265 System Corruption 2% Temperature Cool (9) Movement Treading (160) Location -8/Materials Parts ------- > --- POWER (1) -------- Improved Ion Engine > --- PROPULSION (2) --- Medium Treads Medium Treads > --- UTILITY (5) ------ High-capacity Storage Unit Advanced Weight Redist. System Advanced Targeting Computer Target Analyzer Hardened Light Armor Plating > --- WEAPON (3) ------- Gatling Laser Beam Cannon Minigun > --- INVENTORY (20) --- Nuclear Core Armored Treads Medium Treads Medium Treads Shock Absorption System Authchip [R/Combat] Relay Coupler [Swarmer] (33) Relay Coupler [Grunt] (26) Relay Coupler [Duelist] (26) Field Laser Heavy Particle Cannon YOLO Cannon High-powered Shotgun Chainsword Peak State ------------ > --- POWER ------------ Improved Ion Engine > --- PROPULSION ------- Medium Treads Medium Treads > --- UTILITY ---------- High-capacity Storage Unit Advanced Weight Redist. System Advanced Targeting Computer Target Analyzer Recoil Stabilizer > --- WEAPON ----------- YOLO Cannon High-powered Shotgun > --- INVENTORY -------- Nuclear Core Armored Treads Medium Treads Medium Treads Shock Absorption System Authchip [R/Combat] Relay Coupler [Swarmer] Relay Coupler [Grunt] Relay Coupler [Duelist] Field Laser Beam Cannon Minigun Chainsword [Rating: 50] Favorites ----------- Power Ion Engine Engine Ion Engine Power Core Light Nuclear Core Propulsion Carbon-fiber Leg Treads Armored Treads Leg Carbon-fiber Leg Wheel Wheel Flight Unit Flight Unit Utility High-capacity Storage Unit Device Advanced Weight Redist. System Storage High-capacity Storage Unit Processor Targeting Computer Hackware Hacking Suite Protection Hardened Light Armor Plating Weapon Heavy Assault Rifle Energy Gun Medium Laser Energy Cannon Ion Cannon Ballistic Gun Heavy Assault Rifle Ballistic Cannon Light Cannon Launcher Grenade Launcher Slashing Weapon Katana Build | -11 -10 -10 -9 -9 -9 -8 -8 -8 -8 ------- Run | Yrd Mat Min Mat Min Exi Min Mat Gar Mat Slots Evolved 4 | . . . 2 . . . 2 . . Power . | . . . . . . . . . . Propulsion . | . . . . . . . . . . Utility 3 | . . . 1 . . . 2 . . Weapon 1 | . . . 1 . . . . . . Parts Attached 105 | 7 13 . 8 5 1 5 36 14 16 Power 7 | 1 . . 1 . . 1 3 . 1 Engine 5 | 1 . . 1 . . . 2 . 1 Core 2 | . . . . . . 1 1 . . Reactor . | . . . . . . . . . . Propulsion 33 | 2 5 . 4 2 . 2 8 5 5 Treads 7 | . . . . . . . 2 1 4 Leg 16 | 2 3 . 2 2 . 2 2 2 1 Wheel 2 | . . . . . . . 2 . . Hover . | . . . . . . . . . . Flight 8 | . 2 . 2 . . . 2 2 . Utility 24 | 1 3 . 1 2 . . 12 2 3 Device 9 | . . . . . . . 6 1 2 Storage 3 | 1 2 . . . . . . . . Processor 6 | . 1 . . 2 . . 2 1 . Hackware 1 | . . . . . . . 1 . . Protection 5 | . . . 1 . . . 3 . 1 Artifact . | . . . . . . . . . . Weapon 41 | 3 5 . 2 1 1 2 13 7 7 Energy Gun 6 | 3 . . 1 . . . 1 . 1 Energy Cannon 10 | . . . . . 1 . 3 4 2 Ballistic Gun 15 | . 3 . 1 . . 1 3 3 4 Ballistic Cannon 4 | . 1 . . . . 1 2 . . Launcher 5 | . 1 . . 1 . . 3 . . Special Weapon . | . . . . . . . . . . Impact Weapon . | . . . . . . . . . . Slashing Weapon 1 | . . . . . . . 1 . . Piercing Weapon . | . . . . . . . . . . Special Melee Weapon . | . . . . . . . . . . Unidentified Prototypes 2 | . . . 1 . . . 1 . . Parts Lost 22 | . 1 . . 1 . . 9 5 6 Power 3 | . . . . . . . 2 . 1 Propulsion 6 | . 1 . . . . . 1 2 2 Utility 5 | . . . . 1 . . 1 2 1 Weapon 8 | . . . . . . . 5 1 2 Highest Loss Streak 5 | . 1 . . 1 . . 2 5 5 To Critical Strikes . | . . . . . . . . . . Average Slot Usage (%) 95 | . 96 100 87 98 100 95 93 90 90 Engine 9 | . 14 14 11 11 11 7 5 9 9 Core 1 | . . . . . . 3 3 . . Leg 18 | . 23 28 22 22 22 22 11 14 9 Wheel 1 | . . . . . . . 4 . . Device 2 | . . . . . . . 3 8 16 Storage 10 | . 14 14 11 11 11 11 9 9 9 Processor 19 | . 10 14 11 17 22 22 22 20 18 Protection 2 | . . . 10 4 . . 5 6 . Energy Gun 1 | . 8 . . . . . 1 . 1 Energy Cannon 3 | . . . . . . 3 4 17 9 Ballistic Gun 12 | . 18 14 11 11 11 18 12 2 9 Ballistic Cannon 6 | . . 14 11 11 11 7 4 . . Launcher 4 | . . . . 9 11 . 3 . . Peak Build Rating 50 | 6 7 8 13 19 37 37 46 46 50 Average Rating 22 | 4 6 7 9 17 19 26 26 40 40 On Entrance 19 | . 6 7 8 11 18 37 22 46 42 Naked Turns . | . . . . . . . . . . Heaviest Build 79 | 12 48 48 56 59 66 66 68 79 69 Greatest Support 65 | 20 20 20 20 38 38 38 30 34 65 Greatest Overweight (x) 6 | . 2 2 2 2 1 1 6 3 2 Average Overweight (x) 1 | . . 2 2 1 1 1 2 1 1 Largest Inventory Capacity 20 | 8 20 20 20 20 20 20 20 20 20 Average Capacity 18 | 7 11 20 20 20 20 20 20 20 20 Most Carried 19 | 2 9 10 11 12 15 13 15 19 16 Average Carried 10 | 1 5 9 8 10 12 9 9 13 10 Final Capacity 20 | 8 20 20 20 20 20 20 20 20 20 Final Carried 15 | 2 9 10 9 11 13 10 11 14 15 Class Distribution -------------------- 45% | Gunner 18% | Mutant 12% | Skirmisher 10% | Scavenger-Gunner 10% | Scavenger-Skirmisher Dominant Class ---------------- Mutant | -10/Materials Mutant | -10/Mines Mutant | -9/Materials Gunner | -9/Mines Gunner | -9/Exiles Skirmisher | -8/Mines Scavenger-Gunner | -8/Materials Gunner | -8/Garrison Gunner | -8/Materials Resources | -11 -10 -10 -9 -9 -9 -8 -8 -8 -8 ----------- Run | Yrd Mat Min Mat Min Exi Min Mat Gar Mat Matter Collected 2270 | 236 227 96 67 175 7 256 779 274 153 Remotely . | . . . . . . . . . . Salvage Created 2583 | . 297 38 . 161 . 684 888 308 207 Parts 163 | . 28 4 . 14 . 38 49 14 16 Haulers Intercepted . | . . . . . . . . . . Recyclers Shooed 3 | . . 1 . . . . 1 . 1 Parts Field Recycled . | . . . . . . . . . . Retrieved Matter . | . . . . . . . . . . Parts Self-Destructed . | . . . . . . . . . . Prevented . | . . . . . . . . . . Kills | -11 -10 -10 -9 -9 -9 -8 -8 -8 -8 ------- Run | Yrd Mat Min Mat Min Exi Min Mat Gar Mat Combat Hostiles Destroyed 86 | . 8 3 . 11 . 25 23 10 6 Melee 1 | . . . . . . . 1 . . Guns 31 | . 8 1 . 3 . 6 8 1 4 Cannons 29 | . . 2 . 1 . 8 10 6 2 AOE 22 | . . . . 7 . 9 3 3 . Classes Destroyed 12 | . 5 . . 1 . 1 4 1 . Worker 1 | . . . . . . . 1 . . Builder 5 | . 1 . . 1 . 1 . . 2 Tunneler 1 | . . . . . . 1 . . . Recycler 2 | . . . . . . . 2 . . Operator 3 | . 1 . . . . . 1 . 1 Watcher 6 | . 3 . . . . . 2 . 1 Swarmer 46 | . 6 3 . 8 . 13 7 6 3 Grunt 31 | . 2 . . 2 . 12 10 3 2 Duelist 1 | . . . . 1 . . . . . Sentry 6 | . . . . . . . 5 . 1 Hunter 1 | . . . . . . . . 1 . Heavy 1 | . . . . . . . 1 . . Best Kill Streak 8 | . 3 3 . 8 . 5 5 4 3 Combat Bots Only 7 | . 3 3 . 7 . 5 5 4 3 Max Kills in Single Turn 5 | . 1 1 . 5 . 3 3 2 2 Gunslinging . | . . . . . . . . . . Exploded 4 | . . . . 4 . 2 1 1 . Melee 1 | . . . . . . . 1 . . Uniques/NPCs Destroyed . | . . . . . . . . . . Combat | -11 -10 -10 -9 -9 -9 -8 -8 -8 -8 -------- Run | Yrd Mat Min Mat Min Exi Min Mat Gar Mat Hostile Shots Fired 471 | . 67 6 . 15 . 73 121 117 72 Missed 132 | . 19 1 . 4 . 26 31 32 19 Damage Taken 4240 | . 405 38 . 101 . 646 1568 832 650 Core 689 | . 44 6 . 8 . 74 341 147 69 Absorbed by Shields 63 | . . . . . . . . . 63 Regen/Repaired (Parts) 228 | . . . . . . . 131 . 97 Core Remaining (%) 86 | 100 . 80 . . . 79 . . . Volleys Fired 192 | . 34 3 . 11 1 27 76 21 19 Largest 3 | . 2 2 . 3 2 3 3 3 3 Hottest 165 | . 90 55 . 88 58 123 153 160 165 Shots Fired 441 | . 67 6 . 27 2 71 173 54 41 Gun 252 | . 62 3 . 11 1 44 92 14 25 Cannon 176 | . 5 3 . 11 1 27 73 40 16 Launcher 13 | . . . . 5 . . 8 . . Special . | . . . . . . . . . . Kinetic 296 | . 48 6 . 22 2 61 119 14 24 Thermal 122 | . 9 . . . . 10 46 40 17 Explosive 13 | . . . . 5 . . 8 . . Electromagnetic 10 | . 10 . . . . . . . . Robot Hit Streak 20 | . 8 2 . 4 . 5 20 7 9 Robot Miss Streak 9 | . 4 3 . 2 . 3 9 6 4 Penetration Max . | . . . . . . . . . . Secondary Targets . | . . . . . . . . . . Shots Hit Robots 245 | . 35 2 . 14 . 35 112 22 25 Core Hits 161 | . 15 3 . 16 . 29 66 16 16 Critical Kills 3 | . . . . . . 2 1 . . Critical Parts Destroyed . | . . . . . . . . . . Critical Strikes 3 | . . . . . . 2 1 . . Meltdown 3 | . . . . . . 2 1 . . Melee Attacks 1 | . . . . . . . 1 . . Impact . | . . . . . . . . . . Slashing 1 | . . . . . . . 1 . . Piercing . | . . . . . . . . . . Sneak Attacks . | . . . . . . . . . . Combat Hostiles . | . . . . . . . . . . Follow-up Attacks . | . . . . . . . . . . Damage Inflicted 8279 | . 491 61 . 528 . 2076 2559 1876 688 Guns 2135 | . 454 13 . 113 . 329 844 86 296 Cannons 3287 | . 37 32 . 82 . 852 1245 798 241 Explosions 2783 | . . . . 327 . 894 424 992 146 Melee 35 | . . . . . . . 35 . . Ramming 39 | . . 16 . 6 . 1 11 . 5 Kinetic 2573 | . 390 45 . 195 . 485 1109 86 263 Thermal 4918 | . 37 . . . . 1590 1081 1790 420 Explosive 627 | . . . . 327 . . 300 . . Electromagnetic 87 | . 64 . . . . . 23 . . Impact . | . . . . . . . . . . Slashing 35 | . . . . . . . 35 . . Piercing . | . . . . . . . . . . Highest Corruption 2 | . . . . . . . 2 2 2 Average Corruption 2 | . . . . . . . 2 2 2 Corruption Purged . | . . . . . . . . . . Corruption Blocked . | . . . . . . . . . . Effects 37 | . . . . . . . 17 10 10 Message Errors 16 | . . . . . . . 8 4 4 Matter Fused 8 | . . . . . . . 5 3 . Heat Flow Errors 4 | . . . . . . . 1 1 2 Energy Discharges 1 | . . . . . . . 1 . . Data Loss (minor) 4 | . . . . . . . 1 1 2 Data Loss (major) 1 | . . . . . . . . 1 . Misfires 1 | . . . . . . . . . 1 Alerts 1 | . . . . . . . . . 1 Weapon Failures 1 | . . . . . . . 1 . . Overload Shots . | . . . . . . . . . . Overflow Damage 530 | . . . . 4 . 288 14 120 104 Projectiles 433 | . . . . . . 219 14 120 80 Explosions 97 | . . . . 4 . 69 . . 24 Melee . | . . . . . . . . . . Knockbacks 24 | . 1 . . 3 . . 20 . . Impact . | . . . . . . . . . . Kinetic 23 | . 1 . . 3 . . 19 . . Secondary 1 | . . . . . . . 1 . . Self-Inflicted Damage 154 | . . . . . . 75 26 . 53 Shots 3 | . . . . . . 1 1 . 1 Rammed 1 | . . . . . . . 1 . . Targets Rammed 10 | . . 4 . 3 . 1 1 . 1 Kicked 9 | . . 4 . 3 . 1 . . 1 Crushed . | . . . . . . . . . . Highest Temperature 521 | . 150 16 . 102 . 206 521 385 263 Average Temperature 98 | . 53 14 . 43 . 47 155 132 48 Received Heat Transfer 1109 | . 48 . . 18 . 216 558 36 233 Effects 9 | . . . . . . . 6 2 1 Shutdowns 1 | . . . . . . . 1 . . Energy Bleed 3 | . . . . . . . 1 2 . Interference 3 | . . . . . . . 2 . 1 Short Circuit 1 | . . . . . . . 1 . . Damage (minor) 1 | . . . . . . . 1 . . Siege Activations . | . . . . . . . . . . Robots Corrupted . | . . . . . . . . . . Combat Hostiles . | . . . . . . . . . . Parts Fried . | . . . . . . . . . . Impact Corruptions . | . . . . . . . . . . Robots Melted 3 | . . . . . . 2 1 . . Combat Hostiles 3 | . . . . . . 2 1 . . Parts Melted 11 | . . . . . . 6 4 1 . Heat Transferred 5821 | . 111 . . . . 1440 1732 2044 494 Parts Sabotaged . | . . . . . . . . . . Parts Stolen . | . . . . . . . . . . Parts Stripped . | . . . . . . . . . . Power Chain Reactions . | . . . . . . . . . . Alert | -11 -10 -10 -9 -9 -9 -8 -8 -8 -8 ------- Run | Yrd Mat Min Mat Min Exi Min Mat Gar Mat Peak Influence 408 | . 174 70 42 205 . 408 316 353 374 Initial 171 | . . . 27 16 . . 111 78 171 Average 149 | . 66 69 30 58 . 330 131 239 241 Maximum Alert Level 2 | . . . . 1 . 2 1 1 1 Low Security (%) 71 | 100 100 100 100 90 . 6 86 35 50 Level 1 25 | . . . . 9 . 71 13 64 50 Level 2 3 | . . . . . . 21 . . . Level 3 . | . . . . . . . . . . Level 4 . | . . . . . . . . . . Level 5 . | . . . . . . . . . . High Security . | . . . . . . . . . . Max Security . | . . . . . . . . . . Squads Dispatched 6 | . . . . 1 . . 5 . . Investigation 3 | . . . . 1 . . 2 . . Extermination . | . . . . . . . . . . Reinforcement 3 | . . . . . . . 3 . . Assault . | . . . . . . . . . . Garrison . | . . . . . . . . . . Intercept . | . . . . . . . . . . Searches Triggered . | . . . . . . . . . . Construction Impeded . | . . . . . . . . . . Haulers Reinforced . | . . . . . . . . . . Active Scanning Responses . | . . . . . . . . . . Cargo Convoy Interrupts . | . . . . . . . . . . Stealth | -11 -10 -10 -9 -9 -9 -8 -8 -8 -8 --------- Run | Yrd Mat Min Mat Min Exi Min Mat Gar Mat Distress Signals 9 | . 2 . 1 . . . 5 . 1 Communications Jammed . | . . . . . . . . . . Distress Signals . | . . . . . . . . . . Times Spotted 120 | . 13 3 2 11 . 25 45 11 10 Peak Tracking Total 6 | . 3 2 2 5 . 6 6 5 6 Tactical Retreats 7 | . 2 1 1 . . 1 2 . . Traps | -11 -10 -10 -9 -9 -9 -8 -8 -8 -8 ------- Run | Yrd Mat Min Mat Min Exi Min Mat Gar Mat Traps Triggered 4 | . . . . . . . 2 2 . Indirectly . | . . . . . . . . . . Trap Hack Attempts . | . . . . . . . . . . Triggered . | . . . . . . . . . . Disarmed . | . . . . . . . . . . Reprogrammed . | . . . . . . . . . . Reused . | . . . . . . . . . . Traps Extracted . | . . . . . . . . . . Installed . | . . . . . . . . . . Triggered . | . . . . . . . . . . Machines | -11 -10 -10 -9 -9 -9 -8 -8 -8 -8 ---------- Run | Yrd Mat Min Mat Min Exi Min Mat Gar Mat Machines Disabled 12 | . . . . . . 3 6 1 2 Max in Single Turn 2 | . . . . . . 1 2 1 1 Garrison Relay 1 | . . . . . . . . 1 . Machines Repaired . | . . . . . . . . . . Machines Dismantled . | . . . . . . . . . . Machines Sabotaged . | . . . . . . . . . . Overloaded Fab Kills . | . . . . . . . . . . Hacking | -11 -10 -10 -9 -9 -9 -8 -8 -8 -8 --------- Run | Yrd Mat Min Mat Min Exi Min Mat Gar Mat Machines Accessed 22 | . 4 . 2 2 5 . 6 1 2 Terminals 12 | . 4 . 2 . . . 4 1 1 Fabricators . | . . . . . . . . . . Repair Stations 2 | . . . . . . . 1 . 1 Recycling Units . | . . . . . . . . . . Scanalyzers . | . . . . . . . . . . Garrison Access 1 | . . . . . . . 1 . . Total Hacks 92 | . 11 . 3 2 50 . 18 2 6 Successful 74 | . 5 . 2 2 50 . 12 . 3 Failed 18 | . 6 . 1 . . . 6 2 3 Catastrophic 4 | . 2 . . . . . . 1 1 Database Lockouts . | . . . . . . . . . . Manual 7 | . . . . . 2 . 4 . 1 Terminals 27 | . 11 . 3 . . . 8 2 3 Fabricators . | . . . . . . . . . . Repair Stations 10 | . . . . . . . 7 . 3 Recycling Units . | . . . . . . . . . . Scanalyzers . | . . . . . . . . . . Garrison Access 3 | . . . . . . . 3 . . Terminal Hacks 66 | . 5 . 2 2 50 . 6 . 1 Record 49 | . . . . . 49 . . . . Robot Analysis 1 | . 1 . . . . . . . . Prototype ID Bank 2 | . . . . . . . 2 . . Open Door 2 | . . . . 2 . . . . . Emergency Access Points 2 | . 2 . . . . . . . . Alert Level 2 | . 1 . 1 . . . . . . Unreport Threat 1 | . . . . . . . 1 . . Dispatch Records 1 | . . . . . . . 1 . . Recall Reinforcements 1 | . . . . . . . 1 . . Zone Layout 4 | . 1 . 1 . . . 1 . 1 Derelict Proto ID Bank 1 | . . . . . 1 . . . . Fabricator Hacks . | . . . . . . . . . . Repair Station Hacks 6 | . . . . . . . 4 . 2 Scan Component 3 | . . . . . . . 2 . 1 Repair 3 | . . . . . . . 2 . 1 Recycling Unit Hacks . | . . . . . . . . . . Scanalyzer . | . . . . . . . . . . Garrison Access Hacks 2 | . . . . . . . 2 . . Unlock Access 1 | . . . . . . . 1 . . Coupler Status 1 | . . . . . . . 1 . . Unauthorized Hacks . | . . . . . . . . . . Terminals . | . . . . . . . . . . Fabricators . | . . . . . . . . . . Repair Stations . | . . . . . . . . . . Recycling Units . | . . . . . . . . . . Scanalyzers . | . . . . . . . . . . Garrison Access . | . . . . . . . . . . Data Cores Recovered 1 | . . . . . . . . . 1 Used . | . . . . . . . . . . Hacking Detections 13 | . 4 . 1 . . . 5 1 2 Full Trace Events 2 | . . . . . . . 2 . . Feedback Events . | . . . . . . . . . . Feedback Blocked . | . . . . . . . . . . Robot Schematics Acquired . | . . . . . . . . . . Robots Built . | . . . . . . . . . . Authchips . | . . . . . . . . . . Time . | . . . . . . . . . . Total Robot Build Rating . | . . . . . . . . . . Part Schematics Acquired . | . . . . . . . . . . Parts Built . | . . . . . . . . . . Authchips . | . . . . . . . . . . Time . | . . . . . . . . . . Total Part Build Rating . | . . . . . . . . . . Parts Repaired 3 | . . . . . . . 2 . 1 Time 84 | . . . . . . . 58 . 26 Parts Recycled . | . . . . . . . . . . Recycled Matter . | . . . . . . . . . . Retrieved Matter . | . . . . . . . . . . Retrieved Components . | . . . . . . . . . . Parts Scanalyzed . | . . . . . . . . . . Part Schematics Acquired . | . . . . . . . . . . Parts Damaged . | . . . . . . . . . . Bothacking | -11 -10 -10 -9 -9 -9 -8 -8 -8 -8 ------------ Run | Yrd Mat Min Mat Min Exi Min Mat Gar Mat Used RIF Installer . | . . . . . . . . . . Robots Hacked . | . . . . . . . . . . Non-combat . | . . . . . . . . . . Combat . | . . . . . . . . . . Robot Hacks Applied . | . . . . . . . . . . Relay Couplers Released 3 | . . . . . . . . 3 . Machine Destruction 3 | . . . . . . . . 3 . Fabnet Peak Effective % . | . . . . . . . . . . Robots Rewired . | . . . . . . . . . . Allies Hacked . | . . . . . . . . . . Hacks Repelled . | . . . . . . . . . . Allies | -11 -10 -10 -9 -9 -9 -8 -8 -8 -8 -------- Run | Yrd Mat Min Mat Min Exi Min Mat Gar Mat Total Allies . | . . . . . . . . . . Largest Group . | . . . . . . . . . . Highest-Rated Group . | . . . . . . . . . . Highest-Rated Ally . | . . . . . . . . . . Total Orders 1 | . . . . . . . 1 . . RETURN 1 | . . . . . . . 1 . . Ally Attacks 15 | . . . . . . . 15 . . Total Damage . | . . . . . . . . . . Kills . | . . . . . . . . . . Allies Corrupted 1 | . . . . . . . 1 . . Allies Melted . | . . . . . . . . . . Intel | -11 -10 -10 -9 -9 -9 -8 -8 -8 -8 ------- Run | Yrd Mat Min Mat Min Exi Min Mat Gar Mat Robot Analysis Total 1 | . 1 . . . . . . . . Derelict Logs Recovered 2 | . . . . 2 . . . . . Drone Launches 29 | . . . . . . . 29 . . Drone Recoveries 13 | . . . . . . . 13 . . Exploration | -11 -10 -10 -9 -9 -9 -8 -8 -8 -8 ------------- Run | Yrd Mat Min Mat Min Exi Min Mat Gar Mat Turns Passed 10536 | 62 1214 216 259 1729 1705 1306 2643 716 686 Spaces Moved 4635 | 44 743 76 87 821 872 613 954 223 202 Core 3 | 3 . . . . . . . . . Treads 213 | . . . . . . . 59 . 154 Legs 3861 | 41 599 76 87 821 872 613 514 190 48 Wheels 373 | . . . . . . . 373 . . Hover . | . . . . . . . . . . Flight 185 | . 144 . . . . . 8 33 . Fastest Speed 50 | 50 117 260 260 195 195 190 120 190 160 Average Speed 196 | 115 136 260 260 201 195 193 211 248 263 Slowest Speed 514 | 120 260 260 260 260 195 195 514 277 330 Overloaded Moves . | . . . . . . . . . . Propulsion Burnouts . | . . . . . . . . . . Robots Hopped . | . . . . . . . . . . Cave-ins Triggered . | . . . . . . . . . . Exploration Rate (%) 53 | 3 94 17 15 91 94 97 73 30 20 Regions Visited 9 Branch Regions 4 Pre-discovered Areas 3 | . . . . 2 1 . . . . Known Exits Taken 4 | . . . . 1 1 1 1 . . Unknown Exits Taken 4 | 1 1 1 1 . . . . . . Scrap Searched 3 | . . . . 2 . 1 . . . Spaces Dug . | . . . . . . . . . . Terrain Destroyed 264 | . . . . 38 . 126 47 25 28 Melee . | . . . . . . . . . . Projectile 6 | . . . . . . 3 . 1 2 AOE 258 | . . . . 38 . 123 47 24 26 Terrain Rammed . | . . . . . . . . . . Walls Destroyed . | . . . . . . . . . . Machines Disabled . | . . . . . . . . . . Actions | -11 -10 -10 -9 -9 -9 -8 -8 -8 -8 --------- Run | Yrd Mat Min Mat Min Exi Min Mat Gar Mat Total 5615 | 52 878 83 121 872 876 661 1422 331 319 Wait 529 | . 70 . 17 28 . 2 303 50 59 Move 4627 | 43 742 75 86 820 871 612 954 222 202 Hop . | . . . . . . . . . . Pick Up 82 | 2 13 1 5 4 1 5 30 8 13 Fast Attach 7 | 6 1 . . . . . . . . Attach 63 | . 3 . 3 3 1 5 23 11 14 Detach 21 | . . . . . 2 1 8 6 4 Swap 35 | 1 9 . 5 2 . . 13 3 2 Drop 38 | . 6 . 5 1 . 8 13 . 5 Fire 192 | . 34 3 . 11 1 27 76 21 19 Melee 1 | . . . . . . . 1 . . Ram 1 | . . . . . . . 1 . . Kick 9 | . . 4 . 3 . 1 . . 1 Crush . | . . . . . . . . . . Escape Stasis 10 | . . . . . . . . 10 . Rewire . | . . . . . . . . . . Trap . | . . . . . . . . . . Miscellaneous . | . . . . . . . . . . Route ------- -11/Scrapyard -10/Materials (discovered 4 exits: *Mat x3 / [*Min]) -10/Mines -9/Materials -9/Mines (discovered 3 exits: *Mat x2 / *Exi) -9/Exiles (discovered 2 exits: *Min x2) -8/Mines (discovered 2 exits: *Mat x2) -8/Materials (discovered 4 exits: *Fac x3 / Gar) -8/Garrison -8/Materials (discovered 1 exit: *Fac) History --------- Turn | Location | Event 4 | -11/Scrapyard | Discovered new exit (range 15) 63 | -11/Scrapyard | Entered Materials 159 | -10/Materials | Discovered new exit (range 15) 298 | -10/Materials | Discovered new exit (range 3) 310 | -10/Materials | Build established: Mutant 892 | -10/Materials | Discovered new exit (range 13) 1059 | -10/Materials | Discovered new exit (range 9) 1277 | -10/Materials | Entered Mines 1353 | -10/Mines | Assembled infested the area 1358 | -10/Mines | Assisted by a Guerilla fighting off Assembled 1477 | -10/Mines | Discovered new exit (range 5) 1493 | -10/Mines | Entered Materials 1493 | -9/Materials | Evolved 2 slots: Utility x1, Weapon x1 1662 | -9/Materials | Met 8R-AWN 1713 | -9/Materials | Discovered new exit (range 15) 1752 | -9/Materials | Entered Mines 1753 | -9/Mines | Followed 8R-AWN into the Mines 1757 | -9/Mines | Discovered new exit (range 13) 1954 | -9/Mines | Met a Derelict shopkeep closing up shop 2122 | -9/Mines | Learned 2 Materials zone layouts 2156 | -9/Mines | Found the Drone Emporium 2163 | -9/Mines | Found Prototype Device 2230 | -9/Mines | Build established: Gunner 2288 | -9/Mines | Destroyed 7 combat bots 2378 | -9/Mines | Discovered new exit (range 14) 2389 | -9/Mines | Learned location of Storage (-7) 2465 | -9/Mines | Identified exit to Materials 2616 | -9/Mines | Learned location of Zion (-6) 3056 | -9/Mines | Discovered new exit (range 5) 3063 | -9/Mines | Identified exit to Exiles 3481 | -9/Mines | Entered Exiles 3509 | -9/Exiles | Discovered new exit (range 15) 3536 | -9/Exiles | Welcomed by 8R-AWN 3577 | -9/Exiles | Met EX-HEX 3684 | -9/Exiles | Met EX-DEC 3881 | -9/Exiles | Discovered new exit (range 14) 3905 | -9/Exiles | Identified exit to Mines 4074 | -9/Exiles | Met EX-BIN 4249 | -9/Exiles | Aligned with FarCom system 4251 | -9/Exiles | Given EX-Vault access code 4296 | -9/Exiles | Opened EX-Vault 4325 | -9/Exiles | Found YOLO Cannon 4400 | -9/Exiles | Warned to stay clear of 0b10 Research branches 4752 | -9/Exiles | Visited The Gauntlet 5120 | -9/Exiles | Learned about 8R-AWN's background 5186 | -9/Exiles | Left Exiles lab with YOLO Cannon 5186 | -9/Exiles | Entered Mines 5491 | -8/Mines | Build established: Skirmisher 5842 | -8/Mines | Discovered exit to Materials (range 7) 6141 | -8/Mines | Discovered exit to Materials (range 10) 6323 | -8/Mines | Build established: Scavenger-Skirmisher 6492 | -8/Mines | Entered Materials 6492 | -8/Materials | Evolved 2 slots: Utility x2 6492 | -8/Materials | Identified Bomb Drone Bay 6792 | -8/Materials | Lost 4 allies 6897 | -8/Materials | Lost 7 allies 6957 | -8/Materials | Lost 5 allies 7118 | -8/Materials | Discovered new exit (range 12) 7154 | -8/Materials | Build established: Skirmisher 7341 | -8/Materials | Identified exit to Factory 7850 | -8/Materials | Core integrity fell below 50% 7904 | -8/Materials | Discovered exit to Factory (range 9) 8021 | -8/Materials | Repaired Hrd. Light Armor Plating 8049 | -8/Materials | Repaired Com. Wheel 8372 | -8/Materials | Build established: Scavenger-Gunner 8872 | -8/Materials | Discovered exit to Factory (range 16) 9107 | -8/Materials | Identified exit to Garrison 9135 | -8/Materials | Entered Garrison 9253 | -8/Garrison | Triggered checkpoint 9358 | -8/Garrison | Garrison Relay disabled 9411 | -8/Garrison | Build established: Gunner 9605 | -8/Garrison | Triggered checkpoint 9606 | -8/Garrison | Triggered checkpoint 9629 | -8/Garrison | Core integrity fell below 20% 9668 | -8/Garrison | Lost 5 parts (2n2u1w) 9835 | -8/Garrison | Discovered new exit (range 9) 9851 | -8/Garrison | Entered Materials 9982 | -8/Materials | Lost 5 parts (1p1n1u2w) 10149 | -8/Materials | Repaired Beam Cannon 10531 | -8/Materials | Discovered exit to Factory (range 15) 10537 | -8/Materials | Destroyed by Y-45 Defender with Beam Rifle Last Messages --------------- Downloaded map data. 10366_ System corrupted: IFF burst signal emitted. 10406_ System corrupted: Heat flow error (+181). 10413_ Acquired Med. Treads. 10429_ Dropped Aluminum Leg. 10434_ Acquired Gatling Laser. 10449_ System corrupted: Heat flow error (+288). 10451_ Overheating: System interference. 10451_ Hpw. Shotgun temporarily disabled. 10467_ O-16 Technician: "IFF HANDSHAKE FAILED. SECURING TERMINAL." 10468_ O-16 Technician destroyed. 10473_ Acquired data core, extracted dynamic key. 10489_ Acquired Hrd. Light Armor Plating. 10490_ Dropped Recoil Stabilizer. 10499_ Acquired Hvy. Particle Cannon. 10521_ H%#L